bitfinex-derivatives/quotes_ETHF0:USTF0_20241230
["timestamp","ask_amount","ask_price","bid_price","bid_amount"]
[1735570128641,3.2078,3325.7,3325.5,4.9063972]
[1735570128845,2.4712,3325.6,3325.5,4.9063972]
[1735570129656,2.4712,3325.6,3324.9,3.2078]
[1735570130651,3.2078,3325.2,3324.6,4.8559]
[1735570130856,3.2078,3325.2,3324.6,9.44237572]
[1735570131154,3.2078,3324.7,3324.6,9.44237572]
[1735570131355,5.5965,3325.1,3324.6,9.44237572]
[1735570131847,3.2078,3324.7,3324.6,9.44237572]
[1735570132357,3.2078,3324.7,3324.0,9.44237572]
[1735570133651,3.2078,3324.7,3323.9,46.3916]
[1735570133956,2.3887,3325.1,3323.9,46.3916]
[1735570134156,2.3887,3325.1,3324.3,3.2078]
[1735570134359,5.54192766,3325.2,3324.3,3.2078]
[1735570134561,5.54192766,3325.2,3323.9,46.3916]
[1735570134861,3.2078,3324.8,3324.0,14.35246928]
[1735570135755,3.2078,3324.8,3324.1,4.91009356]
[1735570137061,3.2078,3324.8,3323.9,55.83397572]
[1735570138153,3.2078,3324.8,3323.9,15.03397572]
[1735570138350,3.2078,3324.8,3324.1,9.44237572]
[1735570140056,3.2078,3324.8,3323.9,5.5916]
[1735570140464,2.481,3324.7,3323.9,5.5916]
[1735570140663,3.2078,3324.4,3323.9,5.5916]
[1735570141760,3.2078,3324.4,3323.8,40.8]
[1735570141965,2.96109059,3324.1,3323.7,9.44237572]
[1735570142263,3.2078,3324.4,3323.7,9.44237572]
[1735570142966,3.2078,3324.0,3323.4,3.2078]
[1735570143865,2.3786,3323.9,3323.4,3.2078]
[1735570144361,3.2078,3323.6,3323.1,9.44237572]
[1735570146160,2.33412766,3324.2,3323.5,3.2078]
[1735570146659,2.33412766,3324.2,3323.9,3.2078]
[1735570147165,5.54192766,3324.9,3323.9,3.2078]
[1735570147467,5.54192766,3324.9,3324.3,3.2078]
[1735570147668,5.54192766,3324.9,3324.4,4.728]
[1735570147959,5.54192766,3324.9,3323.7,2.2691]
[1735570147960,3.2078,3324.5,3323.7,3.2078]
[1735570148160,2.96109059,3324.3,3323.8,9.44237572]
[1735570148760,3.2078,3324.0,3323.8,9.44237572]
[1735570149061,2.96109059,3323.9,3323.8,9.44237572]
[1735570149462,2.96109059,3323.9,3323.2,4.728]
[1735570149971,3.2078,3323.6,3323.2,4.728]
[1735570150464,3.2078,3324.0,3323.2,4.728]
[1735570150770,3.2078,3324.0,3323.3,3.2078]
[1735570151973,3.2078,3324.0,3323.2,4.728]
[1735570152666,3.2078,3323.6,3323.2,4.728]
[1735570152866,3.2078,3323.6,3323.2,2.3149]
[1735570153361,3.2078,3323.6,3322.9,40.8]
[1735570154664,3.2078,3323.6,3322.6,4.849]
[1735570155066,3.2078,3323.6,3322.6,9.849]
[1735570155370,2.96109059,3323.9,3322.9,3.2078]
[1735570155564,3.2078,3324.0,3323.3,3.2078]
[1735570156375,3.2078,3324.0,3323.4,4.8555]
[1735570156566,2.96109059,3323.9,3323.3,3.2078]
[1735570157066,2.96109059,3323.5,3323.3,3.2078]
[1735570157669,2.96109059,3323.9,3323.3,3.2078]
[1735570157869,0.03439464,3323.4,3323.3,3.2078]
[1735570162678,0.03439464,3323.4,3322.8,3.2078]
[1735570162977,0.03439464,3323.1,3322.8,3.2078]
[1735570163275,0.03439464,3323.1,3322.8,8.2078]
[1735570163973,0.03439464,3323.0,3322.8,8.2078]
[1735570164177,3.2078,3324.0,3322.8,8.2078]
[1735570164379,3.2078,3324.0,3323.3,3.2078]
[1735570164570,3.2078,3324.4,3323.3,3.2078]
[1735570164776,3.2078,3324.4,3323.4,2.4029]
[1735570165074,3.2078,3324.4,3323.5,2.3563]
[1735570165475,3.2078,3324.4,3323.5,7.3563]
[1735570165673,2.33412766,3325.0,3324.3,3.2078]
[1735570165876,2.33412766,3325.0,3324.4,2.3563]
[1735570166677,2.33412766,3325.0,3324.7,3.2078]
[1735570166885,8.50301825,3325.9,3324.7,3.2078]
[1735570167378,8.50301825,3325.9,3324.8,2.5069]
[1735570167579,8.50301825,3325.9,3325.1,3.2078]
[1735570168280,6.16889059,3325.9,3325.1,3.2078]
[1735570169379,3.2078,3325.9,3325.1,3.2078]
[1735570169774,6.16889059,3326.3,3325.1,8.2078]
[1735570169979,6.16889059,3326.3,3325.6,3.2078]
[1735570170178,3.2078,3326.3,3325.6,3.2078]
[1735570170481,2.4979,3326.4,3326.1,3.2078]
[1735570170677,2.33412766,3326.6,3326.1,3.2078]
[1735570171181,3.2078,3326.7,3326.1,3.2078]
[1735570171182,3.2078,3326.7,3326.1,8.2078]
[1735570172080,2.33412766,3327.0,3326.6,3.2078]
[1735570172386,3.2078,3326.8,3326.7,2.4729]
[1735570172583,2.33412766,3327.0,3326.2,3.2078]
[1735570172785,6.16889059,3326.7,3326.2,3.2078]
[1735570173086,6.16889059,3326.7,3325.9,2.4729]
[1735570173282,3.2078,3326.2,3325.9,2.4729]
[1735570175481,3.2078,3326.2,3325.7,5.5603]
[1735570175683,3.2078,3326.2,3325.7,3.2078]
[1735570177088,3.2078,3326.2,3325.8,2.2834]
[1735570177294,2.3578,3326.6,3325.9,2.3921]
[1735570177585,2.3578,3326.6,3326.1,3.2078]
[1735570179389,3.2078,3326.2,3325.7,3.2078]
[1735570181396,3.2078,3326.3,3325.3,6.16889059]
[1735570181594,3.2078,3326.3,3325.3,11.16889059]
[1735570181796,3.2078,3326.3,3325.8,3.2078]
[1735570181994,3.2078,3326.5,3325.9,4.8643]
[1735570182494,3.2078,3326.0,3325.3,4.8643]
[1735570182790,3.2078,3325.6,3324.8,3.2078]
[1735570182991,5.49399059,3325.5,3324.8,3.2078]
[1735570183196,3.2078,3324.9,3324.6,7.07997979]
[1735570183692,2.96109059,3324.7,3324.1,3.2078]
[1735570183887,3.2078,3324.3,3323.9,9.41027979]
[1735570184489,3.2078,3324.2,3323.9,9.41027979]
[1735570184690,2.96109059,3324.7,3323.9,9.41027979]
[1735570184889,3.2078,3324.2,3323.9,9.41027979]
[1735570185195,3.2078,3324.6,3323.9,2.3303]
[1735570185493,3.2078,3324.6,3323.6,3.2078]
[1735570185693,3.2078,3324.2,3323.6,3.2078]
[1735570185993,3.2078,3323.8,3323.2,40.8]
[1735570187486,3.2078,3324.2,3323.2,40.8]
[1735570187787,3.2078,3323.8,3323.2,40.8]
[1735570187991,3.2078,3323.8,3323.1,3.2078]
[1735570188295,3.2078,3323.4,3322.8,2.4383]
[1735570189191,3.2078,3323.4,3322.7,3.2078]
[1735570189689,5.5087,3323.4,3322.8,40.8]
[1735570189889,7.9355,3323.4,3322.8,40.8]
[1735570190996,3.2078,3323.4,3322.8,40.8]
[1735570191891,5.6727,3323.8,3322.8,40.8]
[1735570192290,5.6727,3323.8,3322.8,44.0078]
[1735570192490,3.2078,3323.4,3322.8,40.8]
[1735570192892,3.2078,3323.4,3322.8,43.233]
[1735570193992,3.2078,3323.4,3322.8,40.8]
[1735570194186,3.2078,3323.4,3322.7,2.4921]
[1735570194692,3.2078,3323.4,3322.8,40.8]
[1735570194902,3.2078,3323.8,3323.1,3.2078]
[1735570195692,3.2078,3323.8,3323.1,8.2078]
[1735570195894,3.2078,3323.8,3323.2,2.3398]
[1735570197391,3.2078,3323.8,3323.1,3.2078]
[1735570199301,3.2078,3323.8,3322.8,40.8]
[1735570200389,2.96109059,3323.9,3322.8,40.8]
[1735570200390,3.2078,3323.4,3322.8,40.8]
[1735570201202,3.2078,3323.4,3322.7,5.6999]
[1735570201697,3.2078,3323.4,3322.8,40.8]
[1735570201904,3.2078,3322.9,3322.7,2.4921]
[1735570202797,2.96109059,3323.5,3322.7,2.4921]
[1735570202798,3.2078,3323.3,3322.7,2.4921]
[1735570203197,3.2078,3323.8,3323.0,3.2078]
[1735570203604,3.2078,3323.8,3323.4,3.2078]
[1735570203802,3.2078,3323.8,3322.7,2.4921]
[1735570203803,3.2078,3323.8,3323.0,3.2078]
[1735570204292,3.2078,3323.8,3323.0,8.2078]
[1735570205002,3.2078,3323.8,3323.4,3.2078]
[1735570205200,3.2078,3323.8,3323.5,7.3741]
[1735570205900,3.2078,3323.8,3323.5,4.8996]
[1735570206305,3.2078,3323.8,3323.5,9.8996]
[1735570206498,3.2078,3324.5,3323.5,4.8996]
[1735570206702,3.2078,3324.1,3323.5,4.8996]
[1735570207303,3.2078,3324.5,3323.5,4.8996]
[1735570207906,3.2078,3324.5,3323.6,40.8]
[1735570209909,3.2078,3324.5,3323.7,2.4156]
[1735570210401,3.2078,3324.5,3323.6,3.2078]
[1735570211002,3.2078,3324.5,3323.6,44.0078]
[1735570211203,3.2078,3323.7,3323.6,40.8]
[1735570211396,3.2078,3323.7,3322.8,9.49557979]
[1735570211602,2.96109059,3323.4,3322.8,9.36507979]
[1735570211803,3.2078,3323.1,3322.8,9.36507979]
[1735570212604,3.2078,3323.1,3322.5,2.4631]
[1735570213198,3.2078,3323.7,3322.7,3.2078]
[1735570213510,4.41809059,3324.2,3322.5,7.4631]
[1735570213511,3.2078,3324.1,3323.3,3.2078]
[1735570213702,3.2078,3324.1,3323.4,4.8622]
[1735570214203,4.7423,3324.5,3323.7,3.2078]
[1735570214204,7.9501,3324.5,3323.7,3.2078]
[1735570214508,3.2078,3324.5,3323.7,3.2078]
[1735570216115,3.2078,3324.1,3323.4,4.8622]
[1735570216609,2.96109059,3324.2,3323.6,3.2078]
[1735570217310,2.96109059,3324.2,3323.4,4.8622]
[1735570217905,2.96109059,3324.2,3323.6,3.2078]
[1735570218214,3.2078,3324.5,3324.0,3.2078]
[1735570218414,3.2078,3324.5,3324.0,44.0078]
[1735570218613,0.30146,3324.3,3324.1,0.30147]
[1735570218814,3.50924,3324.5,3324.3,0.30145]
[1735570219012,3.50924,3324.5,3324.1,0.30147]
[1735570219211,3.2078,3324.5,3324.2,0.30146]
[1735570219409,3.2078,3324.5,3324.3,2.2871]
[1735570219611,3.2078,3325.0,3324.3,2.2871]
[1735570219811,3.2078,3325.4,3324.6,3.2078]
[1735570220015,3.2078,3325.4,3324.8,0.30141]
[1735570220315,0.3014,3325.0,3324.7,0.30141]
[1735570220518,3.2078,3325.4,3324.6,3.2078]
[1735570221114,0.30138,3325.2,3325.0,0.30139]
[1735570221417,3.2078,3325.4,3325.0,0.30139]
[1735570221418,0.30138,3325.1,3325.0,0.30139]
[1735570221813,0.30138,3325.2,3325.0,0.30139]
[1735570222014,0.30138,3325.1,3325.0,0.30139]
[1735570222615,3.2078,3325.4,3324.6,3.2078]
[1735570222821,3.2078,3325.4,3325.0,0.30139]
[1735570223017,0.30138,3325.1,3325.0,0.30139]
[1735570223216,3.2078,3325.9,3325.0,3.2078]
[1735570223410,3.2078,3326.4,3325.4,3.2078]
[1735570223615,0.30131,3326.0,3325.9,0.30131]
[1735570223915,0.30131,3326.0,3325.6,40.8]
[1735570223916,3.2078,3326.0,3325.6,40.8]
[1735570224116,2.96109059,3325.8,3325.0,3.2078]
[1735570224417,0.30138,3325.1,3325.0,3.2078]
[1735570224819,0.30142,3324.7,3324.6,3.2078]
[1735570225021,0.30142,3324.7,3324.6,7.91038034]
[1735570225722,3.50922,3324.7,3324.6,4.70258034]
[1735570226512,3.50922,3324.7,3324.0,14.96425087]
[1735570226513,3.2078,3324.7,3324.0,7.91038034]
[1735570227010,0.30144,3324.5,3324.4,0.30145]
[1735570227213,3.2078,3324.7,3324.0,7.91038034]
[1735570227420,3.2078,3324.7,3324.2,0.30146]
[1735570227620,0.30146,3324.4,3324.3,0.30146]
[1735570227824,3.2078,3324.7,3324.2,5.00405034]
[1735570228014,0.30146,3324.4,3324.2,4.70258034]
[1735570228217,3.2078,3324.7,3324.2,4.70258034]
[1735570228518,0.30146,3324.3,3324.2,5.00404034]
[1735570228914,3.2078,3324.7,3324.6,0.30143]
[1735570228915,0.30143,3324.7,3324.6,0.30143]
[1735570229417,3.71450059,3325.4,3324.4,3.2078]
[1735570229418,2.96109059,3325.4,3324.4,3.2078]
[1735570229618,0.30141,3324.9,3324.7,0.30142]
[1735570229810,0.30138,3325.2,3324.7,41.10142]
[1735570230016,0.30142,3324.8,3324.7,40.8]
[1735570230222,2.96109059,3325.4,3324.6,0.30143]
[1735570230419,0.30144,3324.6,3324.5,4.70258034]
[1735570230722,0.30142,3324.8,3324.7,0.30143]
[1735570230922,0.30141,3324.9,3324.7,0.30142]
[1735570231429,0.75344,3325.3,3324.7,0.30142]
[1735570231723,0.75344,3325.3,3324.5,4.70258034]
[1735570231915,0.75342,3325.4,3324.8,0.30141]
[1735570232222,0.30137,3325.4,3324.8,0.30142]
[1735570232427,0.30142,3324.9,3324.8,0.30142]
[1735570232617,3.2078,3325.5,3324.8,3.2078]
[1735570232919,0.30133,3325.9,3325.4,0.30137]
[1735570233117,0.3013,3326.2,3325.9,0.30133]
[1735570233424,3.2078,3326.4,3326.1,0.3013]
[1735570233425,0.30128,3326.4,3326.1,0.3013]
[1735570233626,2.32536636,3326.5,3326.0,3.2078]
[1735570233818,2.32536636,3326.5,3326.0,3.50911]
[1735570234018,2.32536636,3326.5,3326.0,3.2078]
[1735570234421,0.30128,3326.4,3326.3,3.2078]
[1735570235122,5.42419059,3327.0,3326.3,3.2078]
[1735570235327,0.30127,3326.6,3326.4,0.30128]
[1735570235518,0.30127,3326.6,3326.3,3.2078]
[1735570235519,3.2078,3327.2,3326.3,3.2078]
[1735570235718,3.2078,3327.2,3326.7,3.2078]
[1735570236030,0.30124,3326.9,3326.7,3.50905]
[1735570236326,0.30125,3326.8,3326.7,3.2078]
[1735570237122,3.2078,3327.2,3326.5,0.30127]
[1735570237419,0.30126,3326.7,3326.6,3.2078]
[1735570237619,0.30129,3326.3,3326.2,3.2078]
[1735570237813,0.3013,3326.3,3326.1,0.30131]
[1735570238017,0.3013,3326.3,3326.0,4.70258034]
[1735570238018,0.3013,3326.2,3326.0,4.70258034]
[1735570238220,0.30131,3326.1,3326.0,4.70258034]
[1735570238820,2.467,3326.7,3326.3,0.30129]
[1735570239027,0.30128,3326.4,3326.2,0.30129]
[1735570239218,3.50904,3326.8,3325.8,10.5669]
[1735570239423,3.2078,3327.4,3326.7,3.2078]
[1735570239621,3.2078,3327.4,3327.3,0.30119]
[1735570239828,3.50899,3327.4,3327.2,0.3012]
[1735570240025,3.50899,3327.4,3327.3,0.30119]
[1735570240225,3.2078,3327.4,3326.8,4.9577]
[1735570240628,0.30118,3327.6,3327.4,0.30119]
[1735570240823,3.2078,3327.9,3327.5,0.30118]
[1735570241125,0.3012,3327.4,3327.3,0.3012]
[1735570241325,0.30124,3326.9,3326.8,3.2078]
[1735570241527,0.30129,3326.4,3326.3,4.70258034]
[1735570242124,6.16889059,3326.6,3326.1,10.26167052]
[1735570242125,2.473,3326.8,3326.1,7.91038034]
[1735570242325,0.30129,3326.4,3326.2,0.3013]
[1735570242721,0.3013,3326.2,3326.1,4.70258034]
[1735570242919,3.2078,3326.7,3326.1,4.70258034]
[1735570243125,0.30129,3326.4,3326.2,0.3013]
[1735570243425,3.2078,3326.7,3326.1,4.70258034]
[1735570243426,0.3013,3326.2,3326.1,4.70258034]
[1735570244131,2.8433,3326.2,3326.1,4.70258034]
[1735570244328,2.542,3326.2,3325.9,0.30133]
[1735570244530,2.542,3326.2,3325.8,0.30134]
[1735570244734,2.542,3326.2,3325.4,5.6028]
[1735570245029,2.542,3326.2,3326.1,0.30131]
[1735570245227,3.2078,3326.3,3326.1,0.30131]
[1735570245432,3.2078,3326.3,3325.8,3.2078]
[1735570245727,3.2078,3326.3,3325.8,40.8]
[1735570245934,3.2078,3326.3,3326.2,0.3013]
[1735570246121,5.6808,3326.8,3325.8,49.0078]
[1735570246327,5.7238,3327.2,3327.1,0.30122]
[1735570246828,3.2078,3327.2,3327.1,0.30122]
[1735570247021,3.2078,3327.2,3326.7,3.2078]
[1735570247022,3.2078,3327.2,3327.0,0.30122]
[1735570247225,3.2078,3327.2,3326.0,3.2078]
[1735570247429,0.30127,3326.6,3326.5,0.30127]
[1735570247632,3.2078,3326.8,3326.0,0.75331]
[1735570247837,0.30127,3326.6,3326.5,0.30127]
[1735570248133,2.516,3326.7,3326.6,0.30127]
[1735570248333,2.516,3326.7,3326.0,0.75329]
[1735570248634,2.516,3326.7,3326.6,0.30127]
[1735570248837,3.2078,3326.8,3326.7,0.30126]
[1735570249230,2.4219,3327.1,3326.6,3.2078]
[1735570249429,5.7238,3327.3,3327.2,0.30121]
[1735570249733,6.025,3327.3,3327.2,0.30121]
[1735570249933,5.7238,3327.3,3327.2,0.30121]
[1735570250537,6.025,3327.3,3327.1,0.30121]
[1735570250737,5.7238,3327.3,3327.2,0.30121]
[1735570250936,2.516,3327.3,3327.2,0.30121]
[1735570251231,3.2078,3327.7,3327.6,0.30118]
[1735570251433,3.50897,3327.7,3327.6,0.30118]
[1735570251636,3.2078,3327.7,3327.5,0.30118]
[1735570251832,3.2078,3327.7,3327.6,0.30118]
[1735570252026,6.16889059,3328.2,3327.5,0.75297]
[1735570252230,3.2078,3328.2,3328.1,0.30113]
[1735570252430,3.2078,3328.2,3327.4,3.2078]
[1735570252737,3.50892,3328.2,3328.1,0.30113]
[1735570252938,0.30113,3328.1,3328.0,0.30113]
[1735570253140,3.2078,3328.2,3328.1,0.30113]
[1735570254430,3.2078,3328.6,3327.8,3.9607]
[1735570254631,3.2078,3328.6,3328.5,0.30109]
[1735570256340,3.2078,3329.1,3329.0,0.30105]
[1735570257039,1.454,3329.5,3329.4,0.30103]
[1735570257040,3.2078,3329.5,3329.4,0.30103]
[1735570258048,3.2078,3329.5,3329.1,2.4219]
[1735570258049,11.29646059,3330.1,3329.9,0.30098]
[1735570258247,11.29646059,3330.1,3329.3,3.2078]
[1735570258248,0.30098,3330.0,3329.8,0.30099]
[1735570258440,10.99549059,3330.1,3329.1,2.4219]
[1735570258634,10.99549059,3330.1,3328.9,3.2078]
[1735570258635,3.2078,3329.6,3328.9,3.2078]
[1735570258935,0.30102,3329.5,3329.3,0.30103]
[1735570259139,3.50881,3329.6,3328.9,3.2078]
[1735570259338,3.50881,3329.6,3329.4,0.30102]
[1735570259533,3.2078,3329.6,3329.5,0.30102]
[1735570260245,3.2078,3329.6,3328.9,3.2078]
[1735570260443,3.50882,3329.6,3328.9,3.2078]
[1735570260643,3.2078,3329.6,3328.9,3.2078]
[1735570260943,3.2078,3329.6,3329.5,0.30102]
[1735570261446,0.30103,3329.4,3329.2,0.30104]
[1735570261638,3.2078,3329.6,3328.9,3.2078]
[1735570261837,3.2078,3329.6,3328.9,3.50887]
[1735570262038,3.2078,3329.6,3328.9,3.2078]
[1735570262243,0.00202405,3329.3,3329.2,0.30105]
[1735570262841,0.00202405,3329.3,3328.9,3.2078]
[1735570263038,0.00202405,3329.3,3329.1,0.30105]
[1735570263242,0.00202405,3329.3,3328.9,3.2078]
[1735570263442,0.30106,3329.1,3328.9,3.2078]
[1735570263636,0.30307405,3329.3,3329.1,0.30105]
[1735570263837,0.00202405,3329.3,3328.9,3.2078]
[1735570264041,0.00202405,3329.3,3329.2,0.30105]
[1735570266151,0.00202405,3329.3,3328.9,3.2078]
[1735570266339,0.00202405,3329.3,3329.2,0.30105]
[1735570266647,2.96311464,3329.3,3328.5,3.2078]
[1735570266946,0.30109,3328.8,3328.6,0.3011]
[1735570267254,8.0024,3329.2,3328.8,0.30108]
[1735570267548,0.30105,3329.1,3328.8,0.30107]
[1735570267749,8.0024,3329.2,3328.9,0.30107]
[1735570268141,8.0024,3329.2,3328.3,3.09651]
[1735570268343,0.00202405,3329.3,3329.1,0.30105]
[1735570268542,0.00202405,3329.3,3328.7,3.2078]
[1735570268743,3.2078,3329.2,3328.7,3.2078]
[1735570268944,0.00202405,3329.3,3329.2,0.30105]
[1735570270245,0.00202405,3329.3,3328.9,2.4438]
[1735570270440,3.2078,3329.0,3328.4,2.4438]
[1735570270642,3.2078,3329.0,3328.8,0.30108]
[1735570270643,0.30108,3328.9,3328.8,0.30108]
[1735570270844,3.2078,3329.0,3328.4,2.4438]
[1735570271155,0.30107,3328.9,3328.7,0.30108]
[1735570271352,3.2078,3329.0,3328.9,0.30107]
[1735570271851,0.00202405,3329.3,3329.2,0.30105]
[1735570275156,3.2078,3330.3,3329.2,5.0]
[1735570275357,3.2078,3330.3,3330.2,0.30096]
[1735570275861,3.2078,3330.3,3329.5,3.2078]
[1735570276056,3.2078,3329.9,3329.7,41.10099]
[1735570276256,3.2078,3329.9,3329.8,0.30099]
[1735570276452,3.08459,3330.7,3330.2,0.30096]
[1735570276453,3.2078,3330.3,3330.2,0.30096]
[1735570276658,0.30097,3330.1,3329.8,0.30099]
[1735570276858,3.2078,3330.3,3330.2,0.30096]
[1735570276859,3.50876,3330.3,3330.2,0.30096]
[1735570277061,3.2078,3330.3,3330.2,0.30096]
[1735570277464,3.2078,3330.3,3329.7,40.8]
[1735570277465,3.2078,3330.3,3329.9,2.5215]
[1735570277656,0.30097,3330.1,3330.0,0.30096]
[1735570278158,0.30096,3330.2,3330.1,0.30096]
[1735570278358,3.2078,3330.3,3330.2,0.30096]
[1735570278556,0.30097,3330.1,3330.0,0.30097]
[1735570278763,3.2078,3330.3,3329.9,2.5215]
[1735570278960,0.30097,3330.0,3329.9,2.82247]
[1735570279162,0.30099,3329.9,3329.7,2.5126]
[1735570279363,2.96109059,3330.1,3329.1,5.7293]
[1735570279563,3.2078,3329.9,3329.1,5.7293]
[1735570279764,3.2078,3329.9,3329.1,46.5293]
[1735570280058,3.1667,3330.2,3330.1,0.30096]
[1735570280059,0.30096,3330.2,3330.1,0.30096]
[1735570280259,3.2078,3330.3,3330.2,0.30096]
[1735570280455,3.2078,3330.7,3330.6,0.30092]
[1735570280861,3.50871,3330.7,3330.6,0.30092]
[1735570281060,3.2078,3330.7,3330.6,0.30092]
[1735570281262,3.2078,3331.1,3331.0,0.30087]
[1735570282065,0.30092,3330.7,3330.4,3.2078]
[1735570282370,0.3009,3330.9,3330.8,0.30089]
[1735570282565,3.2078,3331.1,3330.4,3.2078]
[1735570282763,3.2078,3330.5,3329.8,3.2078]
[1735570282960,0.30099,3329.9,3329.8,0.30099]
[1735570283164,3.50879,3329.9,3329.8,0.30099]
[1735570283365,3.2078,3329.9,3329.6,4.70258034]
[1735570283566,3.2078,3329.9,3329.8,0.30099]
[1735570283873,3.2078,3330.3,3329.6,4.70258034]
[1735570284172,3.50875,3330.3,3330.2,0.30096]
[1735570284473,3.2078,3330.7,3330.0,0.75244]
[1735570284669,3.2078,3330.7,3330.6,0.30092]
[1735570285265,3.2078,3331.2,3330.4,3.2078]
[1735570285469,3.2078,3331.2,3331.1,0.30087]
[1735570285871,3.50867,3331.2,3331.1,0.30087]
[1735570286072,3.2078,3331.2,3331.1,0.30087]
[1735570286472,3.50867,3331.2,3331.1,0.30087]
[1735570287074,3.2078,3331.2,3331.1,0.30087]
[1735570287576,3.50867,3331.2,3331.1,0.30087]
[1735570287966,3.2078,3331.2,3331.1,0.30087]
[1735570288166,3.50867,3331.2,3331.1,0.30087]
[1735570289174,3.2078,3331.7,3331.1,40.8]
[1735570289372,3.50863,3331.7,3331.2,0.30087]
[1735570289576,3.2078,3331.7,3331.6,0.30083]
[1735570290571,0.30082,3331.8,3331.3,5.552]
[1735570290776,3.2078,3332.2,3331.3,5.552]
[1735570290977,0.3008,3332.0,3331.9,0.30079]
[1735570291170,3.50858,3332.2,3332.1,0.30078]
[1735570291370,3.2078,3332.2,3332.1,0.30078]
[1735570291876,3.18363,3332.8,3332.5,0.30075]
[1735570291877,3.2078,3332.6,3332.5,0.30075]
[1735570292779,3.50848,3333.3,3333.1,0.30069]
[1735570292973,3.2078,3333.3,3333.2,0.30068]
[1735570293378,3.2078,3333.3,3332.5,3.2078]
[1735570293679,0.3007,3333.1,3332.9,0.30071]
[1735570293875,3.2078,3333.3,3332.5,3.2078]
[1735570294171,0.30071,3332.9,3332.7,0.30073]
[1735570294374,0.30071,3332.9,3332.5,3.2078]
[1735570294574,0.30072,3332.8,3332.6,0.30073]
[1735570294771,2.96109059,3332.9,3332.1,3.2078]
[1735570294974,0.3008,3331.9,3331.8,4.70258034]
[1735570295571,0.3008,3331.9,3331.7,0.30082]
[1735570295775,3.2078,3332.3,3331.5,2.3175]
[1735570296176,0.30077,3332.2,3332.1,0.30078]
[1735570296371,2.2933,3332.7,3332.2,0.30077]
[1735570296577,2.2933,3332.7,3332.0,3.2078]
[1735570296784,0.30074,3332.6,3332.4,0.30075]
[1735570296984,0.30074,3332.6,3332.0,3.2078]
[1735570296985,2.2933,3332.7,3332.0,3.2078]
[1735570297279,0.30078,3332.1,3332.0,3.2078]
[1735570297984,3.71306059,3332.1,3331.2,4.70258034]
[1735570298179,0.75199,3332.0,3331.2,4.70258034]
[1735570298381,0.30086,3331.3,3331.2,4.70258034]
[1735570298681,3.2078,3331.5,3331.2,4.70258034]
[1735570298875,3.2078,3331.5,3331.4,0.30085]
[1735570299284,3.2078,3331.9,3331.4,3.2078]
[1735570299483,3.2078,3331.9,3331.8,0.30081]
[1735570299977,3.2078,3331.9,3331.0,3.2078]
[1735570300183,0.30081,3331.8,3331.3,0.30085]
[1735570300397,3.2078,3331.9,3331.4,0.30084]
[1735570300683,0.30084,3331.5,3331.4,0.30084]
[1735570300882,3.2078,3331.9,3331.0,3.2078]
[1735570301086,0.30089,3330.9,3330.8,2.7699]
[1735570301479,0.30088,3331.1,3331.0,0.30088]
[1735570301683,2.4836,3331.4,3330.8,43.269]
[1735570301880,0.30087,3331.1,3330.9,0.30089]
[1735570302082,0.30087,3331.1,3330.8,43.269]
[1735570302083,3.2078,3331.5,3330.8,43.269]
[1735570302277,3.2078,3331.5,3330.9,0.30089]
[1735570302480,0.30088,3331.1,3331.0,0.30088]
[1735570302679,3.2078,3331.5,3330.8,43.269]
[1735570302879,2.4836,3331.7,3330.8,44.02126]
[1735570303077,0.30088,3331.1,3330.9,0.30089]
[1735570303293,2.4836,3331.7,3330.8,43.269]
[1735570303489,0.30087,3331.2,3331.1,0.30087]
[1735570304178,3.2078,3331.4,3330.8,40.8]
[1735570304377,2.96109059,3331.3,3330.2,2.4108]
[1735570304578,2.96109059,3330.9,3330.1,7.15378034]
[1735570304777,0.30095,3330.3,3330.2,0.30095]
[1735570304983,0.30095,3330.3,3330.2,40.8]
[1735570305180,0.30096,3330.2,3330.1,4.70258034]
[1735570306487,3.2078,3330.4,3329.9,40.8]
[1735570306488,0.30097,3330.0,3329.9,40.8]
[1735570307381,3.50877,3330.0,3329.9,40.8]
[1735570307691,3.96025,3330.0,3329.3,0.30103]
[1735570307988,3.96025,3330.0,3329.0,40.8]
[1735570307989,0.30105,3329.2,3329.0,40.8]
[1735570308192,0.30104,3329.3,3329.0,41.10106]
[1735570308397,0.30103,3329.4,3329.1,0.30105]
[1735570308691,4.8072,3329.9,3329.0,40.8]
[1735570308891,4.8072,3329.9,3329.4,0.30103]
[1735570309097,0.30101,3329.6,3329.4,0.30103]
[1735570309390,0.30101,3329.7,3329.4,0.30103]
[1735570309785,0.30102,3329.5,3329.3,0.30104]
[1735570309982,4.8072,3329.9,3329.0,40.8]
[1735570310789,3.50878,3330.0,3329.8,0.30099]
[1735570310991,3.50878,3330.0,3329.4,3.2078]
[1735570310992,3.2078,3330.4,3329.4,3.2078]
[1735570311186,3.2078,3330.4,3330.3,0.30095]
[1735570311388,3.2078,3330.9,3330.3,40.8]
[1735570311691,7.61989059,3331.3,3330.6,3.2078]
[1735570311988,7.61989059,3331.3,3330.4,2.294]
[1735570312193,6.16889059,3331.3,3330.4,2.294]
[1735570312492,0.30089,3331.0,3330.8,0.3009]
[1735570312789,0.30092,3330.6,3330.5,0.30093]
[1735570312989,0.75227,3330.8,3330.3,40.8]
[1735570313189,0.30097,3330.1,3329.8,0.30099]
[1735570313388,0.30098,3330.0,3329.9,0.30098]
[1735570313594,0.30098,3330.0,3329.9,41.10098]
[1735570314495,5.6152,3330.5,3329.9,40.8]
[1735570314695,0.30098,3330.0,3329.9,40.8]